fUST/lending_fUST_20250601
["ID","MTS","AMOUNT","RATE_DAILY","PERIOD"]
[363552613,1748765444214,-430.0,0.00016438,2]
[363552615,1748765444225,-430.0,0.00016438,2]
[363552618,1748765444237,-430.0,0.00016438,2]
[363552620,1748765444248,-430.0,0.00016438,2]
[363552622,1748765444260,-430.0,0.00016438,2]
[363552624,1748765444272,-430.0,0.00016438,2]
[363552625,1748765444284,-430.0,0.00016438,2]
[363552626,1748765444295,-183.62460969,0.00016438,2]
[363552627,1748765444309,-430.0,0.00016438,2]
[363552628,1748765444320,-430.0,0.00016438,2]
[363552629,1748765444332,-430.0,0.00016438,2]
[363552630,1748765444344,-430.0,0.00016438,2]
[363552631,1748765444356,-911.57,0.00016438,2]
[363552632,1748765444368,-430.0,0.00016438,2]
[363552633,1748765444380,-559.58,0.00016438,2]
[363552634,1748765444393,-430.0,0.00016438,2]
[363552635,1748765444405,-430.57713144,0.00016438,2]
[363552636,1748765444417,-438.51435917,0.00016438,2]
[363552648,1748765444594,-430.0,0.00016438,2]
[363552651,1748765444615,-430.0,0.00016438,2]
[363552653,1748765444626,-151.810814,0.00016438,2]
[363552655,1748765444636,-430.0,0.00016438,2]
[363552657,1748765444646,-430.0,0.00016438,2]
[363552659,1748765444655,-430.0,0.00016438,2]
[363552661,1748765444665,-430.0,0.00016438,2]
[363552663,1748765444675,-430.0,0.00016438,2]
[363552665,1748765444684,-151.810814,0.00016438,2]
[363552667,1748765444694,-361.26527999,0.00016438,2]
[363552669,1748765444703,-430.0,0.00016438,2]
[363552671,1748765444713,-430.0,0.00016438,2]
[363552673,1748765444723,-430.0,0.00016438,2]
[363552675,1748765444732,-430.0,0.00016438,2]
[363552677,1748765444742,-430.0,0.00016438,2]
[363552679,1748765444751,-430.0,0.00016438,2]
[363552681,1748765444761,-1435.85,0.00016438,2]
[363552683,1748765444770,-434.56068407,0.00016438,2]
[363552685,1748765444779,-445.99,0.00016438,2]
[363552687,1748765444789,-430.0,0.00016438,2]
[363552689,1748765444798,-430.0,0.00016438,2]
[363552691,1748765444809,-430.0,0.00016438,2]
[363552693,1748765444818,-430.0,0.00016438,2]
[363552695,1748765444827,-433.05810381,0.00016438,2]
[363552696,1748765444837,-430.0,0.00016438,2]
[363552698,1748765444847,-430.0,0.00016438,2]
[363552700,1748765444856,-430.0,0.00016438,2]
[363552702,1748765444866,-430.0,0.00016438,2]
[363552704,1748765444876,-430.0,0.00016438,2]
[363552706,1748765444885,-430.0,0.00016438,2]
[363552708,1748765444895,-430.0,0.00016438,2]
[363552710,1748765444904,-184.0,0.00016438,3]
[363552712,1748765444913,-207.4,0.000165,2]
[363552714,1748765444923,-300.0,0.000165,2]
[363552716,1748765444932,-300.0,0.000165,2]
[363552718,1748765444942,-300.0,0.000165,2]
[363552720,1748765444951,-300.0,0.000165,2]
[363552722,1748765444961,-300.0,0.000165,2]
[363552724,1748765444970,-300.0,0.000165,2]
[363552726,1748765444980,-300.0,0.000165,2]
[363552728,1748765444989,-300.0,0.000165,2]
[363552730,1748765444998,-300.0,0.000165,2]
[363552732,1748765445008,-300.0,0.000165,2]
[363552734,1748765445018,-300.0,0.000165,2]
[363552736,1748765445027,-300.0,0.000165,2]
[363552738,1748765445036,-300.0,0.000165,2]
[363552740,1748765445046,-300.0,0.000165,2]
[363552742,1748765445055,-255.0,0.000165,2]
[363552744,1748765445065,-151.0,0.000165,2]
[363552746,1748765445074,-204.009821,0.000165,2]
[363552748,1748765445084,-204.009821,0.000165,2]
[363552750,1748765445097,-151.0,0.000165,2]
[363552752,1748765445107,-170.667214,0.000165,2]
[363552754,1748765445116,-151.0,0.000165,2]
[363552756,1748765445126,-170.667214,0.000165,2]
[363552758,1748765445135,-151.0,0.000165,2]
[363552760,1748765445146,-500.0,0.00016574,2]
[363552762,1748765445155,-430.0,0.00016712,2]
[363552764,1748765445165,-430.0,0.00016712,2]
[363552766,1748765445177,-430.0,0.00016712,2]
[363552768,1748765445187,-573.2572686,0.00016712,2]
[363552769,1748765445197,-430.0,0.00016712,2]
[363552771,1748765445208,-430.0,0.00016712,2]
[363552773,1748765445217,-430.0,0.00016712,2]
[363552775,1748765445227,-430.0,0.00016712,2]
[363552778,1748765445238,-430.0,0.00016712,2]
[363552780,1748765445248,-430.0,0.00016712,2]
[363552782,1748765445258,-433.78185387,0.00016712,2]
[363552785,1748765445268,-430.0,0.00016712,2]
[363552788,1748765445277,-430.0,0.00016712,2]
[363552790,1748765445287,-430.0,0.00016712,2]
[363552793,1748765445296,-430.0,0.00016712,2]
[363552796,1748765445307,-430.0,0.00016712,2]
[363552799,1748765445317,-430.0,0.00016712,2]
[363552802,1748765445326,-430.0,0.00016712,2]
[363552806,1748765445337,-430.0,0.00016712,2]
[363552807,1748765445347,-430.0,0.00016712,2]
[363552809,1748765445357,-430.0,0.00016712,2]
[363552811,1748765445367,-227.24096104,0.00016712,2]
[363552813,1748765445376,-407.59634751,0.00016712,2]
[363552815,1748765445386,-430.0,0.00016712,2]
[363552818,1748765445396,-430.0,0.00016712,2]
[363552819,1748765445405,-430.0,0.00016712,2]
[363552821,1748765445415,-262.33555041,0.00016712,2]
[363552823,1748765445425,-284.78389438,0.00016712,2]
[363552825,1748765445434,-431.79222679,0.00016712,2]
[363552827,1748765445445,-430.0,0.00016712,2]
[363552830,1748765445454,-430.0,0.00016712,2]
[363552832,1748765445464,-430.0,0.00016712,2]
[363552833,1748765445473,-423.70980898,0.00016712,2]
[363552835,1748765445483,-430.0,0.00016712,2]
[363552837,1748765445493,-430.0,0.00016712,2]
[363552839,1748765445502,-430.0,0.00016712,2]
[363552841,1748765445512,-430.0,0.00016712,2]
[363552843,1748765445522,-430.0,0.00016712,2]
[363552845,1748765445532,-430.0,0.00016712,2]
[363552847,1748765445542,-430.0,0.00016712,2]
[363552850,1748765445552,-430.0,0.00016712,2]
[363552852,1748765445563,-430.0,0.00016712,2]
[363552854,1748765445572,-1024.89975299,0.00016712,2]
[363552855,1748765445582,-159.034161,0.00016712,2]
[363552858,1748765445592,-345.298026,0.00016712,2]
[363552860,1748765445603,-409.97830081,0.00016712,2]
[363552862,1748765445612,-159.034161,0.00016712,2]
[363552863,1748765445622,-430.0,0.00016712,2]
[363552865,1748765445631,-345.298026,0.00016712,2]
[363552867,1748765445642,-430.0,0.00016712,2]
[363552870,1748765445652,-430.0,0.00016712,2]
[363552872,1748765445662,-430.0,0.00016712,2]
[363552874,1748765445672,-430.0,0.00016712,2]
[363552876,1748765445682,-437.08235146,0.00016712,2]
[363552878,1748765445691,-430.0,0.00016712,2]
[363552880,1748765445701,-430.0,0.00016712,2]
[363552882,1748765445711,-430.0,0.00016712,2]
[363552884,1748765445720,-430.0,0.00016712,2]
[363552886,1748765445730,-430.0,0.00016712,2]
[363552888,1748765445739,-430.0,0.00016712,2]
[363552889,1748765445748,-430.0,0.00016712,2]
[363552891,1748765445757,-430.0,0.00016712,2]
[363552894,1748765445767,-430.0,0.00016712,2]
[363552896,1748765445777,-430.0,0.00016712,2]
[363552898,1748765445787,-422.79546738,0.00016712,2]
[363552900,1748765445797,-430.0,0.00016712,2]
[363552902,1748765445806,-151.0,0.00016712,2]
[363552904,1748765445817,-430.0,0.00016712,2]
[363552905,1748765445826,-282.30220184,0.00016712,2]
[363552908,1748765445837,-430.0,0.00016712,2]
[363552909,1748765445847,-430.0,0.00016712,2]
[363552912,1748765445856,-430.0,0.00016712,2]
[363552914,1748765445866,-430.0,0.00016712,2]
[363552915,1748765445876,-430.0,0.00016712,2]
[363552917,1748765445886,-430.0,0.00016712,2]
[363552920,1748765445896,-430.0,0.00016712,2]
[363552922,1748765445905,-430.0,0.00016712,2]
[363552923,1748765445915,-430.0,0.00016712,2]
[363552926,1748765445925,-430.0,0.00016712,2]
[363552928,1748765445935,-430.0,0.00016712,2]
[363552930,1748765445945,-430.0,0.00016712,2]
[363552932,1748765445955,-430.0,0.00016712,2]
[363552934,1748765445965,-430.0,0.00016712,2]
[363552935,1748765445974,-430.0,0.00016712,2]
[363552937,1748765445983,-151.0,0.00016712,2]
[363552939,1748765445992,-430.0,0.00016712,2]
[363552941,1748765446002,-430.0,0.00016712,2]
[363552943,1748765446012,-474.00373426,0.00016712,2]
[363552945,1748765446021,-151.0,0.00016712,2]
[363552947,1748765446030,-430.0,0.00016712,2]
[363552949,1748765446040,-430.0,0.00016712,2]
[363552951,1748765446049,-151.0,0.00016712,2]
[363552953,1748765446060,-400.0,0.00016712,2]
[363552955,1748765446070,-430.0,0.00016712,2]
[363552957,1748765446079,-430.0,0.00016712,2]
[363552959,1748765446090,-430.0,0.00016712,2]
[363552960,1748765446102,-430.0,0.00016712,2]
[363552962,1748765446112,-430.0,0.00016712,2]
[363552964,1748765446122,-430.0,0.00016712,2]
[363552966,1748765446131,-430.0,0.00016712,2]
[363552968,1748765446143,-430.0,0.00016712,2]
[363552971,1748765446153,-430.0,0.00016712,2]
[363552973,1748765446163,-400.0,0.00016712,2]
[363552974,1748765446174,-430.0,0.00016712,2]
[363552976,1748765446183,-430.0,0.00016712,2]
[363552978,1748765446193,-213.466539,0.00016712,2]
[363552980,1748765446202,-430.0,0.00016712,2]
[363552982,1748765446212,-430.0,0.00016712,2]
[363552984,1748765446221,-1919.086013,0.00016712,2]
[363552987,1748765446233,-1919.086013,0.00016712,2]
[363552989,1748765446243,-198.55791851,0.00016712,2]
[363552990,1748765446252,-543.84658708,0.00016712,2]
[363552992,1748765446263,-443.71294305,0.00016712,2]
[363552994,1748765446273,-430.0,0.00016712,2]
[363552996,1748765446283,-430.0,0.00016712,2]
[363552998,1748765446293,-430.0,0.00016712,2]
[363553001,1748765446303,-344.23476378,0.00016712,2]
[363553003,1748765446313,-430.0,0.00016712,2]
[363553005,1748765446323,-279.2748406,0.00016712,2]
[363553006,1748765446332,-430.0,0.00016712,2]
[363553008,1748765446343,-204.009821,0.00016712,2]
[363553010,1748765446353,-430.0,0.00016712,2]
[363553012,1748765446363,-204.009821,0.00016712,2]
[363553015,1748765446373,-314.58508279,0.00016712,2]
[363553016,1748765446382,-430.0,0.00016712,2]
[363553018,1748765446392,-461.10801608,0.00016712,2]
[363553021,1748765446402,-430.0,0.00016712,2]
[363553022,1748765446411,-430.0,0.00016712,2]
[363553024,1748765446420,-430.0,0.00016712,2]
[363553026,1748765446430,-430.0,0.00016712,2]
[363553029,1748765446440,-430.0,0.00016712,2]
[363553031,1748765446450,-170.667214,0.00016712,2]
[363553032,1748765446459,-430.0,0.00016712,2]
[363553034,1748765446469,-430.0,0.00016712,2]
[363553036,1748765446478,-170.667214,0.00016712,2]
[363553039,1748765446488,-430.0,0.00016712,2]
[363553040,1748765446497,-430.0,0.00016712,2]
[363553043,1748765446508,-430.0,0.00016712,2]
[363553045,1748765446517,-490.0,0.00016712,2]
[363553047,1748765446526,-430.0,0.00016712,2]
[363553049,1748765446536,-430.0,0.00016712,2]
[363553050,1748765446547,-430.0,0.00016712,2]
[363553053,1748765446557,-430.0,0.00016712,2]
[363553054,1748765446567,-430.0,0.00016712,2]
[363553056,1748765446577,-430.0,0.00016712,2]
[363553058,1748765446586,-430.0,0.00016712,2]
[363553060,1748765446596,-400.0,0.00016712,2]
[363553062,1748765446606,-415.04103203,0.00016712,2]
[363553064,1748765446615,-430.0,0.00016712,2]
[363553066,1748765446625,-430.0,0.00016712,2]
[363553068,1748765446634,-324.82145463,0.00016712,2]
[363553070,1748765446644,-430.0,0.00016712,2]
[363553072,1748765446654,-430.0,0.00016712,2]
[363553074,1748765446663,-430.0,0.00016712,2]
[363553076,1748765446673,-470.0,0.00016712,2]
[363553078,1748765446682,-430.0,0.00016712,2]
[363553080,1748765446691,-430.0,0.00016712,2]
[363553082,1748765446701,-430.0,0.00016712,2]
[363553084,1748765446710,-450.0,0.00016712,2]
[363553086,1748765446720,-437.86629958,0.00016712,2]
[363553088,1748765446730,-430.0,0.00016712,2]
[363553090,1748765446741,-430.0,0.00016712,2]
[363553093,1748765446750,-270.0,0.00016712,2]
[363553095,1748765446760,-430.0,0.00016712,2]
[363553096,1748765446770,-737.76,0.00016712,2]
[363553098,1748765446780,-430.0,0.00016712,2]
[363553100,1748765446790,-430.0,0.00016712,2]
[363553103,1748765446800,-430.0,0.00016712,2]
[363553104,1748765446810,-430.0,0.00016712,2]
[363553107,1748765446820,-430.0,0.00016712,2]
[363553108,1748765446829,-151.0,0.00016712,2]
[363553110,1748765446839,-430.0,0.00016712,2]
[363553113,1748765446850,-1294.6,0.00016712,2]
[363553115,1748765446860,-837.66,0.00016712,2]
[363553117,1748765446869,-151.0,0.00016712,2]
[363553118,1748765446878,-151.0,0.00016712,2]
[363553120,1748765446888,-549.12231042,0.00016712,2]
[363553122,1748765446898,-430.0,0.00016712,2]
[363553124,1748765446907,-430.0,0.00016712,2]
[363553127,1748765446917,-199.09021773,0.00016712,2]
[363553129,1748765446927,-430.0,0.00016712,2]
[363553131,1748765446937,-430.0,0.00016712,2]
[363553132,1748765446946,-430.0,0.00016712,2]
[363553133,1748765446956,-363.29837282,0.00016712,2]
[363553134,1748765446966,-430.0,0.00016712,2]
[363553135,1748765446975,-1221.78,0.00016712,2]
[363553136,1748765446984,-430.0,0.00016712,2]
[363553137,1748765446994,-464.24,0.00016712,2]
[363553138,1748765447003,-636.06,0.00016712,2]
[363553140,1748765447013,-415.96720372,0.00016712,2]
[363553142,1748765447022,-570.96,0.00016712,2]
[363553144,1748765447032,-401.82118775,0.00016712,2]
[363553146,1748765447042,-457.86,0.00016712,2]
[363553148,1748765447052,-406.65823829,0.00016712,2]
[363553150,1748765447063,-430.0,0.00016712,2]
[363553153,1748765447073,-430.0,0.00016712,2]
[363553155,1748765447083,-223.61063108,0.00016712,2]
[363553157,1748765447095,-430.0,0.00016712,2]
[363553159,1748765447105,-430.0,0.00016712,2]
[363553161,1748765447114,-430.0,0.00016712,2]
[363553163,1748765447124,-430.0,0.00016712,2]
[363553165,1748765447135,-430.0,0.00016712,2]
[363553167,1748765447144,-430.0,0.00016712,2]
[363553169,1748765447154,-430.0,0.00016712,2]
[363553171,1748765447163,-430.0,0.00016712,2]
[363553173,1748765447174,-430.0,0.00016712,2]
[363553175,1748765447183,-430.0,0.00016712,2]
[363553177,1748765447193,-430.0,0.00016712,2]
[363553179,1748765447202,-430.0,0.00016712,2]
[363553181,1748765447212,-430.0,0.00016712,2]
[363553183,1748765447222,-430.0,0.00016712,2]
[363553185,1748765447232,-258.54120297,0.00016712,2]
[363553187,1748765447242,-430.0,0.00016712,2]
[363553189,1748765447252,-430.0,0.00016712,2]
[363553191,1748765447261,-430.0,0.00016712,2]
[363553193,1748765447272,-430.0,0.00016712,2]
[363553195,1748765447282,-430.0,0.00016712,2]
[363553197,1748765447292,-430.0,0.00016712,2]
[363553199,1748765447302,-500.0,0.00016712,2]
[363553201,1748765447312,-151.0,0.00016712,2]
[363553203,1748765447322,-222.12999999,0.00016712,2]
[363553205,1748765447332,-430.0,0.00016712,2]
[363553207,1748765447341,-430.0,0.00016712,2]
[363553209,1748765447351,-430.0,0.00016712,2]
[363553211,1748765447360,-430.0,0.00016712,2]
[363553213,1748765447369,-430.0,0.00016712,2]
[363553215,1748765447378,-430.0,0.00016712,2]
[363553217,1748765447388,-430.0,0.00016712,2]
[363553219,1748765447397,-430.0,0.00016712,2]
[363553221,1748765447406,-675.77,0.00016712,2]
[363553223,1748765447415,-430.0,0.00016712,2]
[363553226,1748765447425,-173.34552926,0.00016712,2]
[363553228,1748765447435,-430.0,0.00016712,2]
[363553230,1748765447444,-430.0,0.00016712,2]
[363553232,1748765447454,-703.43,0.00016712,2]
[363553234,1748765447464,-430.0,0.00016712,2]
[363553236,1748765447474,-430.0,0.00016712,2]
[363553238,1748765447483,-430.0,0.00016712,2]
[363553240,1748765447492,-430.0,0.00016712,2]
[363553242,1748765447502,-151.0,0.00016712,2]
[363553244,1748765447511,-151.0,0.00016712,2]
[363553246,1748765447521,-430.0,0.00016712,2]
[363553248,1748765447530,-430.0,0.00016712,2]
[363553250,1748765447540,-151.0,0.00016712,2]
[363553252,1748765447549,-296.0,0.00016712,2]
[363553254,1748765447559,-430.0,0.00016712,2]
[363553256,1748765447569,-430.0,0.00016712,2]
[363553271,1748765447696,-430.0,0.00016712,2]
[363553273,1748765447706,-756.62,0.00016712,2]
[363553275,1748765447717,-430.0,0.00016712,2]
[363553277,1748765447727,-430.0,0.00016712,2]
[363553279,1748765447736,-430.0,0.00016712,2]
[363553281,1748765447746,-430.0,0.00016712,2]
[363553283,1748765447756,-430.0,0.00016712,2]
[363553285,1748765447766,-430.0,0.00016712,2]
[363553287,1748765447776,-430.0,0.00016712,2]
[363553289,1748765447786,-430.0,0.00016712,2]
[363553291,1748765447796,-430.0,0.00016712,2]
[363553293,1748765447805,-568.64,0.00016712,2]
[363553295,1748765447815,-430.0,0.00016712,2]
[363553297,1748765447825,-430.0,0.00016712,2]
[363553299,1748765447834,-430.0,0.00016712,2]
[363553301,1748765447844,-430.0,0.00016712,2]
[363553303,1748765447853,-430.0,0.00016712,2]
[363553305,1748765447863,-430.0,0.00016712,2]
[363553307,1748765447872,-430.0,0.00016712,2]
[363553309,1748765447882,-1124.62,0.00016712,2]
[363553311,1748765447892,-430.0,0.00016712,2]
[363553313,1748765447902,-477.19,0.00016712,2]
[363553315,1748765447912,-430.0,0.00016712,2]
[363553317,1748765447922,-430.0,0.00016712,2]
[363553319,1748765447932,-430.0,0.00016712,2]
[363553321,1748765447941,-151.0,0.00016712,2]
[363553323,1748765447951,-430.0,0.00016712,2]
[363553325,1748765447961,-14167.58845354,0.00016712,2]
[363553347,1748765448163,-1715.13482156,0.00016712,2]
[363553349,1748765448177,-984.2367249,0.00016712,2]
[363553351,1748765448187,-151.0,0.00016712,2]
[363553353,1748765448197,-151.0,0.00016712,2]
[363553355,1748765448207,-188.70873862,0.00016712,2]
[363553357,1748765448216,-151.0,0.00016712,2]
[363553359,1748765448225,-430.0,0.00016712,2]
[363553361,1748765448235,-151.0,0.00016712,2]
[363553364,1748765448244,-200.005922,0.00016712,2]
[363553366,1748765448254,-409.13284746,0.00016712,2]
[363553418,1748765448743,-2597.43609273,0.00016298,2]
[363553420,1748765448754,-878.62504552,0.000163,2]
[363553422,1748765448764,-430.0,0.00016438,2]
[363553424,1748765448774,-430.0,0.00016438,2]
[363553426,1748765448784,-430.0,0.00016438,2]
[363553428,1748765448794,-252.196564,0.00016438,2]
[363553431,1748765448803,-430.0,0.00016438,2]
[363553432,1748765448813,-430.0,0.00016438,2]
[363553435,1748765448823,-20.86715254,0.00016712,2]
[363553437,1748765448833,-430.0,0.00016712,2]
[363553439,1748765448843,-430.0,0.00016712,2]
[363553441,1748765448853,-430.0,0.00016712,2]
[363553443,1748765448863,-430.0,0.00016712,2]
[363553445,1748765448873,-430.0,0.00016712,2]
[363553447,1748765448883,-911.57,0.00016712,2]
[363553449,1748765448892,-430.0,0.00016712,2]
[363553451,1748765448902,-559.58,0.00016712,2]
[363553453,1748765448911,-94.33500789,0.00016712,2]
[363553455,1748765448923,-335.66499211,0.00016712,2]
[363553457,1748765448933,-69.48965072,0.00016712,2]
[363553487,1748765449205,-878.6250455,0.00016378,2]
[363553489,1748765449215,-430.0,0.00016438,2]
[363553491,1748765449225,-252.196564,0.00016438,2]
[363553493,1748765449234,-878.6250455,0.00016456,2]
[363553495,1748765449244,-196.16926152,0.00016712,2]
[363553498,1748765449256,-164.34108776,0.00016712,2]
[363553500,1748765449266,-151.810814,0.00016712,2]
[363553502,1748765449276,-151.810814,0.00016712,2]
[363553504,1748765449285,-430.0,0.00016712,2]
[363553506,1748765449295,-430.0,0.00016712,2]
[363553508,1748765449305,-151.810814,0.00016712,2]
[363553510,1748765449315,-151.810814,0.00016712,2]
[363553512,1748765449324,-430.0,0.00016712,2]
[363553514,1748765449334,-111.01266201,0.00016712,2]
[363554087,1748765534479,157.42707701,6.8e-07,2]
[363554095,1748765685189,748.624969,0.00013699,2]
[363554118,1748765835065,157.42707701,6.8e-07,2]
[363554125,1748766066584,254.62797019,0.000246,120]
[363554127,1748766135583,157.42707702,6.8e-07,2]
[363554128,1748766216815,1059.0,0.000246,120]
[363554129,1748766242311,1564.70787539,0.00015,2]
[363554130,1748766242338,1648.11563474,0.00015,2]
[363554131,1748766276662,169.30776411,0.00014711,2]
[363554141,1748766431926,-288.682365,0.00015412,2]
[363554142,1748766431949,-685.7032073,0.00015437,2]
[363554143,1748766431972,-1343.75431658,0.00015444,2]
[363554144,1748766436086,-1955.40539625,0.00015444,2]
[363554145,1748766492612,411.83011159,0.00010618,2]
[363554183,1748766632080,-6258.4624877,0.00015428,2]
[363554184,1748766632091,-255.0,0.000156,2]
[363554185,1748766632101,-332.47161476,0.00015945,2]
[363554186,1748766632112,-199.48296885,0.00015945,2]
[363554187,1748766632121,-167.00197269,0.00016338,2]
[363554188,1748766632132,-351.4500182,0.000164,2]
[363554189,1748766632142,-300.0,0.00016427,2]
[363554190,1748766632152,-300.0,0.00016427,2]
[363554191,1748766632162,-300.0,0.00016427,2]
[363554192,1748766632173,-460.22711126,0.00016428,3]
[363554193,1748766632186,-1524.24342769,0.00016428,3]
[363554213,1748766638063,-1019.30946105,0.00016428,3]
[363554214,1748766638073,-1501.89,0.00016428,3]
[363554215,1748766638083,-750.94,0.00016428,3]
[363554216,1748766638094,-375.47,0.00016428,3]
[363554217,1748766638104,-187.74,0.00016428,3]
[363554218,1748766638115,-563.24,0.00016428,3]
[363554219,1748766638124,-300.0,0.00016436,2]
[363554220,1748766638134,-437.82628787,0.00016437,2]
[363554221,1748766638143,-433.16881611,0.00016437,2]
[363554222,1748766638153,-500.0,0.00016437,2]
[363554223,1748766638162,-500.0,0.00016437,2]
[363554224,1748766638172,-205.99788754,0.00016437,2]
[363554225,1748766638182,-500.0,0.00016437,2]
[363554227,1748766638191,-500.0,0.00016437,2]
[363554228,1748766638201,-500.0,0.00016437,2]
[363554231,1748766638210,-500.0,0.00016437,2]
[363554233,1748766638220,-500.0,0.00016437,2]
[363554235,1748766638230,-449.68571814,0.00016437,2]
[363554236,1748766638240,-500.0,0.00016437,2]
[363554237,1748766638249,-180.44901282,0.00016437,2]
[363554238,1748766638259,-151.0,0.00016438,2]
[363554239,1748766638269,-151.912082,0.00016438,2]
[363554240,1748766638279,-151.0,0.00016438,2]
[363554241,1748766638290,-562.438802,0.00016438,2]
[363554242,1748766638299,-562.438802,0.00016438,2]
[363554243,1748766638309,-151.0,0.00016438,2]
[363554244,1748766638318,-223.50757008,0.00016438,2]
[363554245,1748766638328,-430.0,0.00016438,2]
[363554247,1748766638337,-430.0,0.00016438,2]
[363554248,1748766638347,-450.0,0.00016438,2]
[363554249,1748766638358,-430.0,0.00016438,2]
[363554250,1748766638368,-430.0,0.00016438,2]
[363554251,1748766638377,-360.0,0.00016438,2]
[363554252,1748766638387,-430.0,0.00016438,2]
[363554253,1748766638396,-430.0,0.00016438,2]
[363554254,1748766638405,-430.0,0.00016438,2]
[363554255,1748766638414,-430.0,0.00016438,2]
[363554256,1748766638422,-430.0,0.00016438,2]
[363554257,1748766638430,-469.04087542,0.00016438,2]
[363554258,1748766638438,-430.0,0.00016438,2]
[363554259,1748766638452,-430.0,0.00016438,2]
[363554260,1748766638625,-430.0,0.00016438,2]
[363554261,1748766638636,-400.0,0.00016438,2]
[363554262,1748766638646,-430.0,0.00016438,2]
[363554263,1748766638655,-430.0,0.00016438,2]
[363554264,1748766638664,-430.0,0.00016438,2]
[363554265,1748766638674,-430.0,0.00016438,2]
[363554266,1748766638683,-559.37252558,0.00016438,2]
[363554267,1748766638693,-430.0,0.00016438,2]
[363554268,1748766638702,-397.69743656,0.00016438,2]
[363554269,1748766638712,-430.0,0.00016438,2]
[363554270,1748766638722,-430.0,0.00016438,2]
[363554271,1748766638731,-430.0,0.00016438,2]
[363554272,1748766638741,-430.0,0.00016438,2]
[363554273,1748766638750,-430.0,0.00016438,2]
[363554274,1748766638760,-430.0,0.00016438,2]
[363554275,1748766638770,-490.0,0.00016438,2]
[363554276,1748766638779,-478.66104608,0.00016438,2]
[363554277,1748766638789,-430.0,0.00016438,2]
[363554278,1748766638799,-443.71294305,0.00016438,2]
[363554279,1748766638809,-344.23476378,0.00016438,2]
[363554280,1748766638819,-279.2748406,0.00016438,2]
[363554281,1748766638829,-430.0,0.00016438,2]
[363554282,1748766638839,-430.0,0.00016438,2]
[363554283,1748766638848,-430.0,0.00016438,2]
[363554285,1748766638858,-430.0,0.00016438,2]
[363554286,1748766638868,-430.0,0.00016438,2]
[363554288,1748766638878,-430.0,0.00016438,2]
[363554289,1748766638888,-430.0,0.00016438,2]
[363554290,1748766638898,-490.0,0.00016438,2]
[363554291,1748766638907,-430.0,0.00016438,2]
[363554292,1748766638918,-430.0,0.00016438,2]
[363554293,1748766638928,-177.476054,0.00016438,2]
[363554294,1748766638938,-177.476054,0.00016438,2]
[363554295,1748766638948,-430.0,0.00016438,2]
[363554296,1748766638958,-177.476054,0.00016438,2]
[363554297,1748766638968,-177.476054,0.00016438,2]
[363554298,1748766638978,-430.0,0.00016438,2]
[363554299,1748766638988,-400.0,0.00016438,2]
[363554300,1748766638998,-430.0,0.00016438,2]
[363554301,1748766639007,-430.0,0.00016438,2]